fUSD/lending_fUSD_20240918
["ID","MTS","AMOUNT","RATE_DAILY","PERIOD"]
[338466877,1726667433243,-500.0,0.0001431,2]
[338466878,1726667433254,-500.0,0.00014318,2]
[338466879,1726667433263,-150.0,0.00014327,2]
[338466880,1726667433274,-500.0,0.00014327,2]
[338466881,1726667433284,-500.0,0.00014336,2]
[338466882,1726667433294,-150.0,0.0001442,2]
[338466883,1726667433304,-1000.0,0.00014521,2]
[338466884,1726667433313,-274.764,0.00014521,2]
[338466885,1726667433323,-360.522,0.00014521,2]
[338466886,1726667433333,-150.0,0.000146,2]
[338466887,1726667433343,-587.0,0.000146,2]
[338466888,1726667433353,-166.73121046,0.00014767,2]
[338466889,1726667433364,-1005.4,0.00014775,2]
[338466890,1726667433373,-150.0,0.0001478,2]
[338466891,1726667433383,-402.744026,0.00014795,2]
[338466892,1726667433393,-3000.0,0.000148,2]
[338466893,1726667433403,-500.0,0.0001488,2]
[338466894,1726667433413,-2000.0,0.0001488,2]
[338466895,1726667433423,-500.0,0.0001488,2]
[338466896,1726667433433,-500.0,0.0001488,2]
[338466897,1726667433444,-357.3638,0.0001488,2]
[338466898,1726667433454,-174.72549938,0.00014899,2]
[338466899,1726667433463,-174.72549938,0.00014899,2]
[338466900,1726667433473,-174.72549938,0.000149,2]
[338466901,1726667433483,-201.34185824,0.000149,2]
[338466902,1726667433492,-192.0686,0.000149,2]
[338466903,1726667433502,-174.72549938,0.000149,2]
[338466904,1726667433512,-4668.92854156,0.000149,2]
[338466905,1726667433522,-659.01410712,0.000149,2]
[338466906,1726667433532,-2518.91425953,0.0001499,2]
[338466907,1726667433541,-358.1386465,0.0001499,2]
[338466908,1726667433551,-358.1386465,0.0001499,2]
[338466909,1726667433561,-358.1386465,0.0001499,2]
[338466910,1726667433572,-358.1386465,0.0001499,2]
[338466911,1726667433582,-358.1386465,0.0001499,2]
[338466912,1726667433592,-77733.76471892,0.0001499,2]
[338466913,1726667433621,-3410.50407077,0.0001499,2]
[338466914,1726667433636,-1284.40976051,0.0001499,2]
[338466915,1726667433648,-405.84115355,0.0001499,2]
[338466916,1726667433661,-123335.33610525,0.0001499,2]
[338466917,1726667433670,-1000.0,0.00014999,2]
[338466918,1726667433680,-1000.0,0.00014999,2]
[338466919,1726667433690,-1000.0,0.00014999,2]
[338466920,1726667433700,-1000.0,0.00014999,2]
[338466921,1726667433711,-1000.0,0.00014999,2]
[338466922,1726667433723,-1000.0,0.00014999,2]
[338466923,1726667433734,-1000.0,0.00014999,2]
[338466924,1726667433744,-1000.0,0.00014999,2]
[338466925,1726667433755,-1000.0,0.00014999,2]
[338466926,1726667433766,-955.77,0.00014999,2]
[338466927,1726667433776,-570.0,0.00015,2]
[338466928,1726667433786,-11189.12046845,0.00015,2]
[338466930,1726667433795,-178682.91866284,0.00015,2]
[338466935,1726667433809,-26691.95957221,0.00015,2]
[338466936,1726667433819,-19614.16833409,0.00015,2]
[338466942,1726667433849,-11919.0,0.00015,2]
[338466943,1726667433868,-38728.88450793,0.00015,2]
[338466944,1726667433893,-575.10458265,0.00015,2]
[338466952,1726667438422,-634.7042152,0.00015,2]
[338466954,1726667438434,-5901.89999999,0.00015,2]
[338466956,1726667438445,-21242.7323858,0.00015,2]
[338466991,1726667440253,-451.0501741,0.00015,2]
[338466992,1726667440265,-141788.03169756,0.00015,2]
[338466993,1726667440278,-60335.12837171,0.00015,2]
[338466994,1726667440299,-2692.745717,0.00015,2]
[338466995,1726667440317,-89099.0984953,0.00015,2]
[338466996,1726667440523,-6757.96750055,0.00015,2]
[338466997,1726667440551,-3580.724372,0.00015,2]
[338466998,1726667440584,-46469.05755918,0.00015,2]
[338467321,1726667443924,-135729.98338126,0.00015,2]
[338467323,1726667443935,-489.29187735,0.00015,2]
[338467325,1726667443946,-1175.26064,0.00015,2]
[338467328,1726667443964,-701.666667,0.00015,2]
[338467330,1726667443976,-513.18500005,0.00015,2]
[338467332,1726667443987,-5150.83994801,0.00015,2]
[338467335,1726667443999,-674.74381166,0.00015,2]
[338467337,1726667444017,-660.19,0.00015,2]
[338467339,1726667444032,-2204.45423647,0.00015,2]
[338467341,1726667444043,-3531.51466037,0.00015,2]
[338467343,1726667444054,-3799.999993,0.00015,2]
[338467346,1726667444065,-2743.43994,0.00015,2]
[338467349,1726667444091,-22212.84406301,0.00015,2]
[338467352,1726667444103,-5403.05417497,0.00015,2]
[338467354,1726667444114,-2115.73344882,0.00015,2]
[338467356,1726667444125,-1006.62630079,0.00015,2]
[338467358,1726667444136,-352.72799642,0.00015,2]
[338467360,1726667444148,-695.84866301,0.00015,2]
[338467363,1726667444159,-5674.84497642,0.00015,2]
[338467365,1726667444170,-584.94556398,0.00015,2]
[338467367,1726667444182,-2076.93381065,0.00015,2]
[338467401,1726667444495,-1269.9797806,0.00015,2]
[338467403,1726667444511,-15843.63179293,0.00015,2]
[338467405,1726667444522,-512.00786555,0.00015,2]
[338467408,1726667444536,-835.04991627,0.00015,2]
[338467410,1726667444552,-1130.77964873,0.00015,2]
[338467413,1726667444567,-1934352.8114352,0.00015,2]
[338467415,1726667444578,-673.36632286,0.00015,2]
[338467418,1726667444594,-3075.72210345,0.00015,2]
[338467420,1726667444610,-987.63025012,0.00015,2]
[338467580,1726667446268,-518.0,0.00015,2]
[338467582,1726667446278,-1132.24238056,0.00015,2]
[338467584,1726667446291,-336.27912791,0.00015,2]
[338467587,1726667446307,-284.99000776,0.00015,2]
[338467589,1726667446318,-3000.0,0.00015,2]
[338467596,1726667446376,-5990.73861914,0.00015,2]
[338467599,1726667446389,-315.79999999,0.00015,2]
[338467601,1726667446400,-664.3539998,0.00015,2]
[338467780,1726667629768,153.81,0.0001203,2]
[338467782,1726668233571,76.19818522,0.00011698,2]
[338467783,1726668233600,77.61181478,0.00011698,2]
[338467784,1726668494692,192.81,0.00010959,2]
[338467793,1726668632441,-663.25372651,0.000129,2]
[338467794,1726668632452,-455.59,0.00013,2]
[338467795,1726668632462,-1001.82,0.00013,2]
[338467796,1726668632472,-300.43527423,0.00013,2]
[338467797,1726668632484,-308.90651259,0.00013,2]
[338467798,1726668632493,-200.0,0.00013451,2]
[338467799,1726668632503,-150.0,0.00013488,2]
[338467800,1726668632514,-250.0,0.00013593,2]
[338467801,1726668632524,-182.84,0.00013608,2]
[338467802,1726668632535,-250.0,0.00013628,2]
[338467803,1726668632545,-151.83,0.00013633,2]
[338467804,1726668632556,-337.92,0.00013641,2]
[338467805,1726668632566,-168.50348741,0.00013641,2]
[338467806,1726668632587,-420.52651259,0.00013641,2]
[338467807,1726668632602,-1795.78,0.00013641,2]
[338467808,1726668632612,-164.01,0.00013656,2]
[338467809,1726668632623,-198.61,0.00013699,2]
[338467810,1726668632633,-150.0,0.00013699,2]
[338467811,1726668632644,-200.0,0.00013699,2]
[338467812,1726668632654,-200.0,0.000139,5]
[338467813,1726668632664,-177.40160291,0.00013963,2]
[338467814,1726668632707,-484.67839709,0.00013963,2]
[338467815,1726668632716,-1001.82,0.00013975,2]
[338467816,1726668632726,-500.0,0.00014,5]
[338467817,1726668632736,-168.22,0.00014033,2]
[338467818,1726668632746,-150.0,0.00014059,2]
[338467819,1726668632755,-153.81,0.00014087,2]
[338467820,1726668632765,-700.0,0.000141,5]
[338467821,1726668632775,-1000.0,0.000142,5]
[338467822,1726668632785,-82.97075984,0.000143,5]
[338467823,1726668632796,-596.64961539,0.000143,5]
[338467824,1726668632808,-520.37962477,0.000143,5]
[338467825,1726668632818,-152.0,0.00014311,3]
[338467826,1726668632828,-200.0,0.000144,5]
[338467827,1726668632837,-150.0,0.0001442,2]
[338467828,1726668632847,-200.0,0.000145,5]
[338467829,1726668632857,-1000.0,0.00014521,2]
[338467830,1726668632866,-558.0,0.000146,2]
[338467831,1726668632876,-200.0,0.000146,5]
[338467832,1726668632886,-199.94,0.000147,2]
[338467833,1726668632896,-322.773,0.000147,2]
[338467834,1726668632906,-200.0,0.000147,5]
[338467835,1726668632916,-150.0,0.0001478,2]
[338467836,1726668632925,-152.0,0.00014785,4]
[338467837,1726668632935,-362.469624,0.00014795,2]
[338467838,1726668632945,-110.30341749,0.000148,2]
[338467841,1726668638511,-596.02,0.000148,2]
[338467842,1726668638522,-2293.67658251,0.000148,2]
[338467843,1726668638532,-50.43033282,0.000148,5]
[338467844,1726668638543,-672.56966718,0.000148,5]
[338467845,1726668638553,-500.0,0.0001488,2]
[338467846,1726668638562,-1511.90894735,0.0001488,2]
[338467847,1726668638585,-488.09105265,0.0001488,2]
[338467848,1726668638594,-500.0,0.0001488,2]
[338467849,1726668638609,-500.0,0.0001488,2]
[338467850,1726668638619,-200.0,0.0001488,2]
[338467851,1726668638628,-189.31,0.0001489,2]
[338467852,1726668638638,-189.31,0.0001489,2]
[338467853,1726668638647,-376.9828,0.0001489,2]
[338467854,1726668638656,-2001.1252,0.0001489,2]
[338467855,1726668638666,-2016.6436,0.0001489,2]
[338467856,1726668638675,-1315.45449785,0.0001489,2]
[338467857,1726668638689,-1000.74749995,0.0001489,2]
[338467859,1726668638700,-561.94604066,0.0001489,2]
[338467867,1726668640419,-167.14,0.00013985,2]
[338467868,1726668640429,-1060.38786162,0.0001489,2]
[338467869,1726668640441,-1189.103628,0.0001489,2]
[338467871,1726668640681,-2922.49827192,0.0001489,2]
[338467875,1726668640743,-373.43052044,0.00014893,2]
[338467877,1726668640754,-373.43052037,0.00014894,2]
[338467879,1726668640764,-373.43052037,0.00014895,2]
[338467881,1726668640775,-373.43052037,0.00014895,2]
[338467883,1726668640786,-373.43052037,0.00014896,2]
[338467885,1726668640796,-373.43052037,0.00014897,2]
[338467887,1726668640805,-373.43052037,0.00014898,2]
[338467889,1726668640815,-85.12450843,0.00014898,2]
[338467895,1726668640854,-288.30601194,0.00014898,2]
[338467897,1726668640864,-373.43052037,0.00014899,2]
[338467899,1726668640874,-2062.3757,0.000149,2]
[338467901,1726668640883,-245.39924032,0.000149,2]
[338467903,1726668640895,-8.38644777,0.000149,2]
[338468181,1726668643579,-14595.08379308,0.000149,2]
[338468182,1726668643594,-1073.68623192,0.000149,2]
[338468183,1726668643621,-3099.13313706,0.000149,2]
[338468184,1726668643684,-237.71039017,0.000149,2]
[338468185,1726668643694,-192.0686,0.000149,2]
[338468186,1726668643704,-165.22100983,0.000149,2]
[338468254,1726668646546,-208.20951054,0.000149,2]
[338468255,1726668646556,-189.31,0.0001494,2]
[338468256,1726668646566,-189.31,0.0001494,2]
[338468257,1726668646576,-1001.82,0.0001495,2]
[338468259,1726668646586,-793.55424946,0.0001495,2]
[338468265,1726668646638,-1030.51196535,0.00014602,2]
[338468267,1726668646650,-13888.76619828,0.0001495,2]
[338468269,1726668646660,-300.0,0.0001497,2]
[338468271,1726668646671,-189.31,0.0001498,2]
[338468274,1726668646682,-189.31,0.0001498,2]
[338468276,1726668646692,-189.31,0.0001498,2]
[338468277,1726668646701,-189.31,0.0001498,2]
[338468278,1726668646710,-189.31,0.0001498,2]
[338468279,1726668646720,-189.31,0.0001498,2]
[338468280,1726668646730,-189.31,0.0001498,2]
[338468281,1726668646739,-189.31,0.0001498,2]
[338468282,1726668646749,-189.31,0.0001498,2]
[338468283,1726668646759,-189.31,0.0001498,2]
[338468285,1726668646769,-189.31,0.0001498,2]
[338468287,1726668646779,-189.31,0.0001498,2]
[338468288,1726668646789,-189.31,0.0001498,2]
[338468290,1726668646798,-189.31,0.0001498,2]
[338468293,1726668646807,-46.78151317,0.0001498,2]
[338468490,1726668672422,500.00000001,0.00014,120]
[338468491,1726668767062,151.97,0.00012069,2]
[338468492,1726669310884,151.97,0.00011132,2]
[338468497,1726669759159,-182.91452335,0.000129,2]
[338468499,1726669759186,-47.09366187,0.000129,2]
[338468512,1726669831560,-2118.8868,0.000129,2]
[338468514,1726669831570,-121.3140535,0.000129,2]
[338468515,1726669831579,-2976.9847211,0.000129,2]
[338468516,1726669831588,-151.83,0.00012968,2]
[338468517,1726669831598,-182.84,0.00012968,2]
[338468518,1726669831608,-151.38,0.0001299,2]
[338468519,1726669831618,-159.3902091,0.0001299,2]
[338468520,1726669831628,-352.49262757,0.00012999,2]
[338468521,1726669831638,-410.03,0.00013,2]
[338468522,1726669831648,-1011.94,0.00013,2]
[338468523,1726669831658,-97979.06884296,0.00013,2]
[338468524,1726669831671,-1933.23987972,0.00013,2]
[338468525,1726669831740,-159.3902091,0.0001299,2]
[338468526,1726669831751,-15540.5457628,0.00013,2]
[338468530,1726669831884,-342.1,0.00013,2]
[338468532,1726669831902,-285.29701288,0.00013,2]
[338468535,1726669831913,-1284.5442941,0.00013,2]
[338468537,1726669831930,-1108.19691343,0.00013,2]
[338468540,1726669831948,-648.78668318,0.00013,2]
[338468542,1726669831960,-809.64291851,0.00013,2]
[338468549,1726669837542,-17996.72186206,0.00013,2]
[338468550,1726669837553,-5314.22404625,0.00013,2]
[338468551,1726669837565,-734.84497895,0.00013,2]
[338468552,1726669837588,-479.23585153,0.00013,2]
[338468553,1726669837600,-500.0,0.00013,2]
[338468554,1726669837611,-1856.5631075,0.00013,2]
[338468555,1726669837623,-1656.96940033,0.00013,2]
[338468556,1726669837634,-496.804842,0.00013,2]
[338468557,1726669837651,-669.980028,0.00013,2]
[338468558,1726669837690,-775.44461026,0.00013,2]
[338468559,1726669837702,-440.1604635,0.00013,2]
[338468560,1726669837728,-1343.09577307,0.00013,2]
[338468561,1726669837740,-7757.487596,0.00013,2]
[338468562,1726669837764,-403930.6994801,0.00013,2]
[338468563,1726669837775,-300.32,0.00013,2]
[338468564,1726669837799,-586.27968751,0.00013,2]
[338468565,1726669837811,-24059.66385186,0.00013,2]
[338468597,1726669839701,-1282.56597678,0.00013,2]
[338468598,1726669839713,-2089.031075,0.00013,2]
[338468599,1726669839828,-25542.18993968,0.00013,2]
[338468606,1726669842619,-29750.0,0.00013,2]
[338468613,1726669846029,-18886.39629546,0.00013,2]
[338468614,1726669846040,-6009.24920875,0.00013,2]
[338468615,1726669846052,-594.8,0.00013,2]
[338468616,1726669880710,176.02,0.00011083,2]
[338468617,1726669983009,796.0,0.0001264,2]
[338468618,1726670000677,250.0,0.00012439,2]
[338468619,1726670004197,796.0,0.0001264,2]
[338468620,1726670025292,2212.809885,0.00014,30]
[338468621,1726670106212,322.3,0.00012445,2]
[338468622,1726670106445,322.3,0.00012449,2]
[338468623,1726670106694,322.3,0.00012452,2]
[338468624,1726670106923,322.3,0.00012455,2]
[338468625,1726670107147,322.3,0.00012459,2]
[338468626,1726670107359,322.3,0.00012462,2]
[338468627,1726670107589,322.3,0.00012465,2]
[338468628,1726670108045,322.3,0.00012468,2]
[338468629,1726670108412,322.3,0.00012472,2]
[338468630,1726670108486,322.3,0.00012475,2]
[338468631,1726670108568,322.3,0.00012478,2]
[338468632,1726670108789,322.3,0.00012482,2]
[338468633,1726670109061,322.3,0.00012485,2]
[338468634,1726670109995,322.3,0.00012488,2]
[338468635,1726670110217,322.3,0.00012491,2]
[338468636,1726670110876,322.3,0.00012495,2]
[338468637,1726670111120,322.3,0.00012498,2]
[338468638,1726670111367,322.3,0.00012501,2]
[338468639,1726670111566,322.3,0.00012505,2]
[338468640,1726670111840,322.3,0.00012508,2]
[338468641,1726670543921,187.48,0.00011178,2]
[338468642,1726670703428,150.0,0.00011688,2]
[338468643,1726670703740,150.0,0.00011764,2]
[338468644,1726670704066,150.0,0.0001184,2]
[338468645,1726670707303,150.0,0.00011688,2]
[338468646,1726670707504,150.0,0.00012012,2]
[338468647,1726670707631,150.0,0.00012337,2]
[338468648,1726670710547,150.08851546,0.00011688,2]
[338468649,1726670712905,150.00000001,0.00011688,2]
[338468650,1726670716320,150.0,0.00011688,2]
[338468651,1726670716781,150.0,0.00011873,2]
[338468652,1726670717175,150.0,0.00012059,2]
[338468653,1726670718496,150.0,0.00012244,2]
[338468654,1726670718581,150.0,0.0001243,2]
[338468655,1726670721840,150.0,0.00012615,2]
[338468656,1726670733506,150.0,0.00011688,2]
[338468657,1726670737411,150.0,0.00011688,2]
[338468658,1726670739322,150.00000001,0.00011688,2]
[338468659,1726670741360,150.0,0.00011688,2]
[338468660,1726670743228,150.0,0.00011688,2]
[338468661,1726670749436,150.0,0.00011688,2]
[338468662,1726670754531,150.088282,0.00011688,2]
[338468663,1726670911879,-150.0,0.00012662,2]
[338468665,1726670911906,-150.0,0.00012801,2]
[338468667,1726670911934,-300.0,0.00012899,2]
[338468669,1726670911962,-2378.46707806,0.000129,2]
[338468670,1726670912010,-2978.46707806,0.000129,2]
[338468671,1726670912052,-916.22043467,0.000129,2]
[338468672,1726670949506,184.04,0.00012348,2]
[338468673,1726670997805,154.0,0.00010959,2]
[338468676,1726671031894,-201.24993196,0.000128,2]
[338468677,1726671031904,-2374.83192864,0.000129,2]
[338468678,1726671031916,-1163.4,0.000129,2]
[338468679,1726671031928,-2427.48118057,0.000129,2]
[338468680,1726671031937,-163.52327028,0.000129,2]
[338468681,1726671031946,-152.64047226,0.000129,2]
[338468682,1726671031957,-2301.61175403,0.000129,2]
[338468683,1726671031968,-710.6268626,0.000129,2]
[338468684,1726671031979,-161.0301097,0.000129,2]
[338468685,1726671031989,-199.25222425,0.00012973,2]
[338468686,1726671032001,-275.53675388,0.00012986,2]
[338468687,1726671032012,-198.58083119,0.00012986,2]
[338468688,1726671032021,-150.0,0.00012986,2]
[338468689,1726671032032,-151.19,0.0001299,2]
[338468690,1726671032041,-159.3902091,0.0001299,2]
[338468692,1726671032050,-258.219,0.00012993,2]
[338468693,1726671032060,-150.0,0.00012993,2]
[338468694,1726671032069,-829.27772759,0.00012994,2]
[338468695,1726671032079,-3977.25,0.00012994,2]
[338468696,1726671032088,-254.1,0.00012994,2]
[338468697,1726671032097,-499.99,0.00012994,2]
[338468698,1726671032107,-150.99,0.00012994,2]
[338468699,1726671032117,-317.09238987,0.00012999,2]
[338468700,1726671032128,-371.6545739,0.00013,2]
[338468701,1726671032138,-21607.92917466,0.00013,2]
[338468702,1726671032147,-195.13395336,0.00013,2]
[338468703,1726671032158,-81685.76035576,0.00013,2]
[338468704,1726671032170,-252.17451791,0.00013,2]
[338468705,1726671032181,-6849.56710779,0.00013,2]
[338468706,1726671032193,-1759.92,0.00013,2]
[338468707,1726671032208,-1039.14973622,0.00013,2]
[338468713,1726671037869,-294.06802,0.00013,2]
[338468714,1726671037930,-2084.6,0.00013,2]
[338468715,1726671037991,-1275.20026284,0.00013,2]
[338468766,1726671039798,-1976008.38756442,0.00013,2]
[338468767,1726671039808,-369.03,0.00013,2]
[338468768,1726671039817,-1012.24,0.00013,2]
[338468769,1726671039827,-9771.4,0.00013,2]
[338468770,1726671039836,-193.12,0.00013003,2]
[338468771,1726671039846,-267.15,0.00013043,2]
[338468772,1726671039856,-10000.0,0.00013083,2]
[338468773,1726671039866,-250.0,0.00013113,2]
[338468774,1726671039875,-2301.61175401,0.00013122,2]
[338468775,1726671039884,-796.0,0.00013129,2]
[338468776,1726671039894,-168.31,0.00013144,2]
[338468777,1726671039903,-155.2,0.00013146,2]
[338468778,1726671039912,-162.26,0.00013166,2]
[338468779,1726671039922,-2301.61175401,0.00013344,2]
[338468780,1726671039931,-152.64047226,0.000134,2]
[338468781,1726671039941,-187.48,0.00013441,2]
[338468782,1726671039951,-2301.61175401,0.00013567,2]
[338468783,1726671039960,-162.94,0.00013666,2]
[338468784,1726671039971,-200.0,0.00013699,2]
[338468785,1726671039981,-182.87,0.00013699,2]
[338468786,1726671039991,-150.0,0.00013699,2]
[338468787,1726671040001,-477.91,0.00013699,2]
[338468788,1726671040011,-150.0,0.00013738,2]
[338468789,1726671040021,-13483.0,0.00013738,2]
[338468790,1726671040031,-2301.61175401,0.00013789,2]
[338468791,1726671040042,-796.0,0.0001382,2]
[338468792,1726671040053,-152.64047226,0.000139,2]
[338468793,1726671040062,-19643.0765234,0.000139,2]
[338468794,1726671040073,-710.62686259,0.000139,2]
[338468796,1726671040083,-966.94835557,0.00014,10]
[338468798,1726671040093,-2301.61175401,0.00014011,2]
[338468800,1726671040102,-150.0,0.00014059,2]
[338468802,1726671040112,-181.93,0.00014227,2]
[338468803,1726671040122,-2301.61175401,0.00014233,2]
[338468805,1726671040132,-1012.24,0.000143,2]
[338468807,1726671040142,-5025.55968,0.00014373,2]
[338468809,1726671040152,-152.64047226,0.000144,2]
[338468811,1726671040162,-150.0,0.0001442,2]
[338468813,1726671040171,-2301.61175401,0.00014456,2]
[338468815,1726671040181,-152.0,0.00014469,3]
[338468817,1726671040190,-500.0,0.00014473,2]
[338468819,1726671040200,-160.45986269,0.00014473,2]
[338468821,1726671040210,-203.47951328,0.00014473,2]
[338468823,1726671040219,-500.0,0.00014473,2]
[338468824,1726671040229,-10942.58180465,0.00014497,2]
[338468827,1726671040240,-998166.81,0.000145,2]
[338468828,1726671040250,-579.462696,0.000145,2]
[338468830,1726671040260,-579.462696,0.000145,2]
[338468832,1726671040272,-151.0,0.000145,2]
[338468834,1726671040282,-542.13019,0.000145,2]
[338468836,1726671040295,-1009.663538,0.000145,2]
[338468838,1726671040304,-542.13019,0.000145,2]
[338468862,1726671040530,-1009.663538,0.000145,2]
[338468867,1726671040592,-151.0,0.000145,2]
[338468869,1726671040603,-151.0,0.000145,2]
[338468871,1726671040615,-151.0,0.000145,2]
[338468873,1726671040624,-151.0,0.000145,2]
[338468875,1726671040634,-300.013597,0.000145,2]
[338468877,1726671040643,-151.0,0.000145,2]
[338468878,1726671040653,-300.013597,0.000145,2]
[338468880,1726671040663,-373.688115,0.000145,2]
[338468882,1726671040673,-373.688115,0.000145,2]
[338468884,1726671040683,-151.0,0.000145,2]
[338468886,1726671040693,-151.0,0.000145,2]
[338468888,1726671040703,-915.688385,0.000145,2]
[338468890,1726671040714,-151.0,0.000145,2]
[338468892,1726671040724,-151.0,0.000145,2]
[338468894,1726671040735,-915.688385,0.000145,2]
[338468896,1726671040744,-255.928636,0.000145,2]
[338468898,1726671040754,-151.0,0.000145,2]
[338468900,1726671040763,-209.262253,0.000145,2]
[338468902,1726671040772,-209.262253,0.000145,2]
[338468903,1726671040782,-255.928636,0.000145,2]
[338468905,1726671040793,-151.0,0.000145,2]
[338468907,1726671040802,-151.0,0.000145,2]
[338468909,1726671040811,-254.558539,0.000145,2]
[338468911,1726671040820,-254.558539,0.000145,2]
[338468913,1726671040830,-151.0,0.000145,2]
[338468915,1726671040839,-151.0,0.000145,2]
[338468917,1726671040851,-151.0,0.000145,2]
[338468919,1726671040862,-796.0,0.00014511,2]
[338468920,1726671040871,-1000.0,0.00014521,2]
[338468922,1726671040881,-349.623351,0.00014521,2]
[338468924,1726671040890,-530.0,0.000146,2]
[338468926,1726671040899,-267.15,0.00014674,2]
[338468928,1726671040909,-2301.61175401,0.00014678,2]
[338468929,1726671040918,-1000.0,0.000147,2]
[338468930,1726671040928,-150.0,0.0001478,2]
[338468931,1726671040938,-3000.0,0.000148,2]
[338468932,1726671040947,-150.0,0.00014813,2]
[338468933,1726671040956,-150.0,0.00014838,2]
[338468934,1726671040966,-2000.0,0.00014879,2]
[338468935,1726671040975,-500.0,0.0001488,2]
[338468936,1726671040985,-2000.0,0.0001488,2]
[338468937,1726671040994,-500.0,0.0001488,2]
[338468938,1726671041003,-500.0,0.0001488,2]
[338468939,1726671041012,-200.0,0.0001488,2]
[338468940,1726671041022,-151.0,0.0001489,2]
[338468941,1726671041031,-151.0,0.0001489,2]
[338468942,1726671041042,-151.0,0.0001489,2]
[338468943,1726671041051,-151.0,0.0001489,2]
[338468944,1726671041061,-151.0,0.0001489,2]
[338468945,1726671041070,-154.444615,0.0001489,2]
[338468946,1726671041080,-154.444615,0.0001489,2]
[338468947,1726671041090,-793.582363,0.0001489,2]
[338468948,1726671041099,-793.582363,0.0001489,2]
[338468949,1726671041108,-384.185806,0.0001489,2]
[338468950,1726671041118,-384.185806,0.0001489,2]
[338468951,1726671041128,-151.0,0.0001489,2]
[338468952,1726671041137,-151.0,0.0001489,2]
[338468954,1726671041147,-151.0,0.0001489,2]
[338468956,1726671041156,-151.0,0.0001489,2]
[338468958,1726671041166,-151.0,0.0001489,2]
[338468960,1726671041175,-151.0,0.0001489,2]
[338468962,1726671041185,-269.872784,0.0001489,2]
[338468964,1726671041195,-269.872784,0.0001489,2]
[338468966,1726671041204,-159.71971,0.0001489,2]
[338468968,1726671041214,-159.71971,0.0001489,2]
[338468970,1726671041223,-151.0,0.00014897,2]
[338468972,1726671041232,-151.0,0.00014897,2]
[338468974,1726671041242,-151.0,0.00014897,2]
[338468976,1726671041252,-151.0,0.00014897,2]
[338468978,1726671041261,-151.0,0.00014897,2]
[338468980,1726671041271,-151.0,0.00014897,2]
[338468982,1726671041283,-159.729592,0.00014897,2]
[338468984,1726671041301,-2000.0,0.000149,2]
[338468986,1726671041310,-152.64047226,0.000149,2]
[338468988,1726671041319,-192.0686,0.000149,2]
[338468990,1726671041328,-2301.61175401,0.000149,2]
[338468992,1726671041338,-710.62686259,0.000149,2]
[338468994,1726671041347,-250000.0,0.0001499,2]
[338468996,1726671041356,-181.739169,0.0001499,2]
[338468998,1726671041366,-181.739169,0.0001499,2]
[338469000,1726671041375,-151.0,0.0001499,2]
[338469002,1726671041384,-151.0,0.0001499,2]
[338469004,1726671041394,-151.0,0.0001499,2]
[338469006,1726671041403,-193.46409,0.0001499,2]
[338469008,1726671041413,-151.0,0.0001499,2]
[338469010,1726671041422,-151.0,0.0001499,2]
[338469012,1726671041431,-151.0,0.0001499,2]
[338469014,1726671041442,-151.0,0.0001499,2]